Cogmind - Beta 11.1 @@@ ROGUE MODE // 2022.11.14 @ 12:57:55 Player: darki Result: Destroyed by S-27 Virus with Autogun Performance ------------- Evolutions (4) 2000 Regions Visited (9) 1800 Robots Destroyed (14) 70 Value Destroyed (324) 324 Prototype IDs (26) 520 Alien Tech Used (0) 0 Bonus (605) 605 TOTAL SCORE: 5319 Bonus ------- Follower Combat Kills 105 Entered Garrisons 200 Aligned with FarCom 300 Cogmind --------- Core Integrity 0/850 Matter 172/300 Energy 82/100 System Corruption 0% Temperature Cool (0) Movement Core (50) Location -6/Factory Parts ------- > --- POWER (1) -------- (None) > --- PROPULSION (4) --- (None) > --- UTILITY (8) ------ Advanced Terrain Scanner Hacking Suite Hacking Suite Hacking Suite Hacking Suite > --- WEAPON (2) ------- (None) > --- INVENTORY (5) ---- Light Nuclear Core Fission Core Improved Core Shielding Improved Core Shielding Great Maul Peak State ------------ > --- POWER ------------ Light Nuclear Core > --- PROPULSION ------- Flying Fortress v7 > --- UTILITY ---------- Small Storage Unit Hacking Suite Hacking Suite Hacking Suite Hacking Suite Hacking Suite > --- WEAPON ----------- High-powered Shotgun Datajack > --- INVENTORY -------- Fission Core Experimental Sensor Array EM Pulse Gun Mining Laser [Rating: 56] Favorites ----------- Power Ion Engine Engine Ion Engine Power Core Light Nuclear Core Propulsion Aluminum Leg Leg Aluminum Leg Flight Unit Flying Fortress v7 Utility Hacking Suite Device Structural Scanner Storage Small Storage Unit Hackware Hacking Suite Protection Improved Core Shielding Weapon High-powered Shotgun Energy Gun High-powered Shock Rifle Ballistic Gun High-powered Shotgun Launcher Long-range Missile Launcher Impact Weapon Great Maul Special Melee Weapon Datajack Build | -11 -10 -10 -10 -9 -8 -7 -6 -6 -6 ------- Run | Scr Mat Min Exi Min Mat Fac Fac Gar Fac Slots Evolved 8 | . . . . . 4 2 2 . . Power . | . . . . . . . . . . Propulsion 2 | . . . . . 2 . . . . Utility 6 | . . . . . 2 2 2 . . Weapon . | . . . . . . . . . . Parts Attached 27 | . . 1 . 2 7 4 7 5 1 Power 3 | . . . . . 1 . 1 1 . Engine . | . . . . . . . . . . Core 3 | . . . . . 1 . 1 1 . Reactor . | . . . . . . . . . . Propulsion 3 | . . . . . 1 . 2 . . Treads . | . . . . . . . . . . Leg . | . . . . . . . . . . Wheel . | . . . . . . . . . . Hover . | . . . . . . . . . . Flight 3 | . . . . . 1 . 2 . . Utility 12 | . . 1 . 2 3 2 1 2 1 Device 6 | . . 1 . 2 . . 1 1 1 Storage . | . . . . . . . . . . Processor . | . . . . . . . . . . Hackware 5 | . . . . . 3 2 . . . Protection 1 | . . . . . . . . 1 . Artifact . | . . . . . . . . . . Weapon 9 | . . . . . 2 2 3 2 . Energy Gun 2 | . . . . . . . . 2 . Energy Cannon . | . . . . . . . . . . Ballistic Gun 2 | . . . . . 2 . . . . Ballistic Cannon . | . . . . . . . . . . Launcher 1 | . . . . . . . 1 . . Special Weapon . | . . . . . . . . . . Impact Weapon 3 | . . . . . . 1 2 . . Slashing Weapon . | . . . . . . . . . . Piercing Weapon . | . . . . . . . . . . Special Melee Weapon 1 | . . . . . . 1 . . . Unidentified Prototypes 2 | . . . . 1 . . 1 . . Parts Lost 11 | . . . . . 1 3 4 3 . Power 1 | . . . . . . 1 . . . Propulsion 3 | . . . . . . 1 2 . . Utility 4 | . . . . . 1 . 1 2 . Weapon 3 | . . . . . . 1 1 1 . Highest Loss Streak 4 | . . . . . 1 2 4 2 . To Critical Strikes . | . . . . . . . . . . Average Slot Usage (%) 70 | . 85 97 100 100 60 65 34 35 28 Engine 6 | . 14 14 14 14 3 . . . . Core 2 | . . . . . 4 6 . . . Leg 10 | . 28 28 28 28 . . . . . Flight 3 | . . . . . 9 6 . . . Device 6 | . . 11 14 14 6 . . 2 2 Storage 8 | . 14 14 14 14 9 6 . . . Hackware 14 | . . . . . 10 30 31 26 26 Ballistic Gun 15 | . 28 28 28 28 16 5 . . . Special Melee Weapon 1 | . . . . . . 5 . . . Naked Turns . | . . . . . . . . . . Heaviest Build 17 | 13 13 14 14 14 17 16 4 9 1 Greatest Support 50 | 20 20 20 20 20 50 50 15 3 3 Greatest Overweight (x) 3 | . . . . . . 3 1 2 . Average Overweight (x) . | . . . . . . . . . . Largest Inventory Capacity 8 | 8 8 8 8 8 8 8 5 5 5 Average Capacity 7 | 8 8 8 8 8 8 7 5 5 5 Most Carried 8 | 6 7 7 8 8 8 5 5 5 5 Average Carried 5 | 6 6 7 7 8 4 4 2 4 5 Final Capacity 8 | 8 8 8 8 8 8 5 5 5 5 Final Carried 8 | 6 7 7 8 8 4 5 3 5 5 Class Distribution -------------------- 54% | Mutant 44% | Hacker-Mutant Dominant Class ---------------- Mutant | -10/Materials Mutant | -10/Mines Mutant | -10/Exiles Mutant | -9/Mines Mutant | -8/Materials Hacker-Mutant | -7/Factory Hacker-Mutant | -6/Factory Hacker-Mutant | -6/Garrison Hacker-Scout | -6/Factory Resources | -11 -10 -10 -10 -9 -8 -7 -6 -6 -6 ----------- Run | Scr Mat Min Exi Min Mat Fac Fac Gar Fac Matter Collected 483 | 200 . 18 . 23 121 2 38 81 . Remotely . | . . . . . . . . . . Salvage Created 289 | . . . . 23 109 57 25 75 . Parts 32 | . . . . 3 14 3 7 5 . Haulers Intercepted 1 | . . . . . . 1 . . . Recyclers Shooed . | . . . . . . . . . . Parts Field Recycled . | . . . . . . . . . . Retrieved Matter . | . . . . . . . . . . Parts Self-Destructed . | . . . . . . . . . . Prevented . | . . . . . . . . . . Kills | -11 -10 -10 -10 -9 -8 -7 -6 -6 -6 ------- Run | Scr Mat Min Exi Min Mat Fac Fac Gar Fac Combat Hostiles Destroyed 8 | . . . . . 5 . 2 1 . Guns 6 | . . . . . 5 . . 1 . AOE 2 | . . . . . . . 2 . . Classes Destroyed 9 | . . . . 1 5 1 1 1 . Builder 1 | . . . . . . . 1 . . Tunneler 1 | . . . . 1 . . . . . Hauler 1 | . . . . . . 1 . . . Operator 2 | . . . . . 2 . . . . Watcher 1 | . . . . . 1 . . . . Swarmer 5 | . . . . . 3 . 2 . . Cutter 1 | . . . . . 1 . . . . Grunt 1 | . . . . . 1 . . . . Sentry 1 | . . . . . . . . 1 . Best Kill Streak 3 | . . . . 1 3 1 3 1 . Combat Bots Only 3 | . . . . . 3 . 2 1 . Max Kills in Single Turn 3 | . . . . 1 2 1 3 1 . Gunslinging 1 | . . . . . 1 . . . . Exploded 2 | . . . . . . . 2 . . Melee . | . . . . . . . . . . Uniques/NPCs Destroyed . | . . . . . . . . . . Combat | -11 -10 -10 -10 -9 -8 -7 -6 -6 -6 -------- Run | Scr Mat Min Exi Min Mat Fac Fac Gar Fac Damage Taken 2900 | . 75 21 . . 701 739 498 832 34 Core 1201 | . 21 . . . 23 296 339 488 34 Absorbed by Shields . | . . . . . . . . . . Redirected to Shielding 105 | . . . . . . . . 105 . Core Remaining (%) 85 | 100 . . . 91 95 57 . . . Volleys Fired 36 | . . 2 . 1 27 . 2 4 . Largest 2 | . . 2 . 2 2 . 1 2 . Hottest 120 | . . 40 . 40 50 . 43 120 . Shots Fired 63 | . . 4 . 2 47 . 2 8 . Gun 61 | . . 4 . 2 47 . . 8 . Cannon . | . . . . . . . . . . Launcher 2 | . . . . . . . 2 . . Special . | . . . . . . . . . . Kinetic 53 | . . 4 . 2 47 . . . . Thermal . | . . . . . . . . . . Explosive 2 | . . . . . . . 2 . . Electromagnetic 8 | . . . . . . . . 8 . Robot Hit Streak 9 | . . 2 . 1 6 . 1 9 . Robot Miss Streak 3 | . . 1 . . 3 . 1 . . Penetration Max . | . . . . . . . . . . Secondary Targets 2 | . . . . . 2 . . . . Max Gunslinging Chain 1 | . . . . . 1 . . . . Shots Hit Robots 63 | . . 2 . 1 37 14 1 8 . Core Hits 29 | . . 1 . 1 17 2 4 4 . Critical Kills . | . . . . . . . . . . Critical Parts Destroyed . | . . . . . . . . . . Critical Strikes 1 | . . . . . . . . 1 . Corrupt 1 | . . . . . . . . 1 . Melee Attacks 22 | . . . . . . 21 1 . . Impact 9 | . . . . . . 8 1 . . Slashing . | . . . . . . . . . . Piercing . | . . . . . . . . . . Sneak Attacks 14 | . . . . . . 14 . . . Combat Hostiles . | . . . . . . . . . . Follow-up Attacks . | . . . . . . . . . . Damage Inflicted 1279 | . . 19 . 14 641 103 309 193 . Guns 840 | . . 19 . 14 641 . . 166 . Cannons . | . . . . . . . . . . Explosions 303 | . . . . . . . 303 . . Melee 81 | . . . . . . 81 . . . Ramming 55 | . . . . . . 22 6 27 . Kinetic 674 | . . 19 . 14 641 . . . . Thermal . | . . . . . . . . . . Explosive 303 | . . . . . . . 303 . . Electromagnetic 166 | . . . . . . . . 166 . Impact 81 | . . . . . . 81 . . . Slashing . | . . . . . . . . . . Piercing . | . . . . . . . . . . Highest Corruption 1 | . 1 1 1 1 . . . . . Average Corruption 1 | . 1 1 1 1 . . . . . Corruption Purged . | . . . . . . . . . . Corruption Blocked . | . . . . . . . . . . Effects 6 | . . 1 2 3 . . . . . Message Errors 3 | . . . . 3 . . . . . Matter Fused 2 | . . 1 1 . . . . . . Data Loss (minor) 1 | . . . 1 . . . . . . Overload Shots . | . . . . . . . . . . Overflow Damage 104 | . . . . . . 21 83 . . Projectiles . | . . . . . . . . . . Explosions 83 | . . . . . . . 83 . . Melee 21 | . . . . . . 21 . . . Knockbacks 1 | . . . . . . 1 . . . Impact 1 | . . . . . . 1 . . . Kinetic . | . . . . . . . . . . Secondary . | . . . . . . . . . . Self-Inflicted Damage 73 | . . . . . . 10 52 11 . Shots 1 | . . . . . . . 1 . . Rammed 11 | . . . . . . 2 1 8 . Targets Rammed 11 | . . . . . . 2 1 8 . Kicked . | . . . . . . . . . . Crushed . | . . . . . . . . . . Highest Temperature 54 | . . 6 . . 54 11 . 39 . Average Temperature 21 | . . 6 . . 22 11 . 20 . Received Heat Transfer 570 | . 42 12 . . 207 18 48 243 . Siege Activations . | . . . . . . . . . . Robots Corrupted . | . . . . . . . . . . Combat Hostiles . | . . . . . . . . . . Parts Fried 2 | . . . . . . . . 2 . Impact Corruptions 1 | . . . . . . 1 . . . Robots Melted . | . . . . . . . . . . Combat Hostiles . | . . . . . . . . . . Parts Melted . | . . . . . . . . . . Heat Transferred . | . . . . . . . . . . Parts Sabotaged . | . . . . . . . . . . Parts Stolen . | . . . . . . . . . . Parts Stripped . | . . . . . . . . . . Power Chain Reactions . | . . . . . . . . . . Missiles Intercepted . | . . . . . . . . . . Alert | -11 -10 -10 -10 -9 -8 -7 -6 -6 -6 ------- Run | Scr Mat Min Exi Min Mat Fac Fac Gar Fac Peak Influence 301 | . 12 62 . 5 301 172 102 123 64 Initial 84 | . . 4 . . 1 74 84 43 64 Average 66 | . 5 28 . 2 107 86 43 68 64 Maximum Alert Level 1 | . . . . . 1 . . . . Low Security (%) 95 | 100 100 100 . 100 84 100 100 100 100 Level 1 4 | . . . . . 15 . . . . Level 2 . | . . . . . . . . . . Level 3 . | . . . . . . . . . . Level 4 . | . . . . . . . . . . Level 5 . | . . . . . . . . . . High Security . | . . . . . . . . . . Max Security . | . . . . . . . . . . Squads Dispatched 21 | . 1 . . . 7 10 3 . . Investigation 11 | . 1 . . . 2 6 2 . . Extermination 1 | . . . . . . 1 . . . Reinforcement 8 | . . . . . 5 2 1 . . Assault 1 | . . . . . . 1 . . . Garrison . | . . . . . . . . . . Intercept . | . . . . . . . . . . Searches Triggered . | . . . . . . . . . . Construction Impeded 1 | . . . . . . . 1 . . Haulers Reinforced . | . . . . . . . . . . Active Scanning Responses . | . . . . . . . . . . Cargo Convoy Interrupts . | . . . . . . . . . . Stealth | -11 -10 -10 -10 -9 -8 -7 -6 -6 -6 --------- Run | Scr Mat Min Exi Min Mat Fac Fac Gar Fac Distress Signals 3 | . . . . . 2 1 . . . Communications Jammed . | . . . . . . . . . . Distress Signals . | . . . . . . . . . . Times Spotted 68 | . 3 2 . . 26 17 9 8 3 Peak Tracking Total 11 | . 3 2 . . 11 10 6 5 3 Tactical Retreats 8 | . . . . . 3 3 . 2 . Traps | -11 -10 -10 -10 -9 -8 -7 -6 -6 -6 ------- Run | Scr Mat Min Exi Min Mat Fac Fac Gar Fac Traps Triggered 6 | . . . . . 1 2 1 1 1 Indirectly . | . . . . . . . . . . Trap Hack Attempts . | . . . . . . . . . . Triggered . | . . . . . . . . . . Disarmed . | . . . . . . . . . . Reprogrammed . | . . . . . . . . . . Reused . | . . . . . . . . . . Traps Extracted . | . . . . . . . . . . Installed . | . . . . . . . . . . Triggered . | . . . . . . . . . . Machines | -11 -10 -10 -10 -9 -8 -7 -6 -6 -6 ---------- Run | Scr Mat Min Exi Min Mat Fac Fac Gar Fac Machines Disabled 4 | . . . . . 2 . 2 . . Max in Single Turn 2 | . . . . . 1 . 2 . . Garrison Access 1 | . . . . . . 1 . . . Machines Sabotaged . | . . . . . . . . . . Garrisons Compromised . | . . . . . . . . . . Overloaded Fab Kills . | . . . . . . . . . . Hacking | -11 -10 -10 -10 -9 -8 -7 -6 -6 -6 --------- Run | Scr Mat Min Exi Min Mat Fac Fac Gar Fac Machines Accessed 19 | . 2 . 1 . 4 7 4 . 1 Terminals 12 | . 2 . . . 4 3 2 . 1 Fabricators 4 | . . . . . . 4 . . . Repair Stations . | . . . . . . . . . . Recycling Units . | . . . . . . . . . . Scanalyzers 1 | . . . . . . . 1 . . Garrison Access 1 | . . . . . . . 1 . . Total Hacks 60 | . 5 . 1 . 14 23 16 . 1 Successful 48 | . 2 . 1 . 10 19 15 . 1 Failed 12 | . 3 . . . 4 4 1 . . Catastrophic 1 | . 1 . . . . . . . . Database Lockouts . | . . . . . . . . . . Manual 35 | . . . 1 . 13 13 8 . . Terminals 44 | . 5 . . . 14 12 12 . 1 Fabricators 11 | . . . . . . 11 . . . Repair Stations . | . . . . . . . . . . Recycling Units . | . . . . . . . . . . Scanalyzers 2 | . . . . . . . 2 . . Garrison Access 2 | . . . . . . . 2 . . Terminal Hacks 27 | . 2 . 1 . 6 7 10 . 1 Part Schematic 3 | . . . . . 2 . 1 . . Robot Analysis 1 | . . . . . 1 . . . . Prototype ID Bank 1 | . . . . . . . 1 . . Open DSF 2 | . . . . . . 1 . . 1 Level Access Points 2 | . . . . . 1 . 1 . . Branch Access Points 1 | . 1 . . . . . . . . Terminal Index 1 | . . . . . . . 1 . . Fabricator Index 1 | . . . . . . . 1 . . Repair Station Index 1 | . . . . . . . 1 . . Garrison Index 2 | . . . . . . 1 1 . . Unreport Threat 4 | . . . . . 1 2 1 . . Dispatch Records 1 | . . . . . . . 1 . . Recall Investigation 2 | . . . . . . 1 1 . . Recall Reinforcements 1 | . . . . . . 1 . . . Hauler Manifests 1 | . . . . . . 1 . . . Zone Layout 2 | . 1 . . . 1 . . . . EX-Prototype ID Bank 1 | . . . 1 . . . . . . Fabricator Hacks 5 | . . . . . . 5 . . . Load Schematic 2 | . . . . . . 2 . . . Build 3 | . . . . . . 3 . . . Repair Station Hacks . | . . . . . . . . . . Recycling Unit Hacks . | . . . . . . . . . . Scanalyzer 2 | . . . . . . . 2 . . Insert Component 1 | . . . . . . . 1 . . Analyze 1 | . . . . . . . 1 . . Garrison Access Hacks 1 | . . . . . . . 1 . . Unlock Access 1 | . . . . . . . 1 . . Unauthorized Hacks 13 | . . . . . 4 7 2 . . Terminals 9 | . . . . . 4 3 2 . . Botnet 8 | . . . . . 4 2 2 . . Disrupt 1 | . . . . . . 1 . . . Fabricators 4 | . . . . . . 4 . . . Fabnet 4 | . . . . . . 4 . . . Repair Stations . | . . . . . . . . . . Recycling Units . | . . . . . . . . . . Scanalyzers . | . . . . . . . . . . Garrison Access . | . . . . . . . . . . Data Cores Recovered . | . . . . . . . . . . Used . | . . . . . . . . . . Hacking Detections 15 | . 1 . . . 4 6 4 . . Full Trace Events 9 | . 1 . . . 2 4 2 . . Feedback Events 1 | . 1 . . . . . . . . Corruption 1 | . 1 . . . . . . . . Feedback Blocked . | . . . . . . . . . . Robot Schematics Acquired . | . . . . . . . . . . Robots Built 3 | . . . . . . 3 . . . Authchips . | . . . . . . . . . . Time 33 | . . . . . . 33 . . . Total Robot Build Rating 6 | . . . . . . 6 . . . Part Schematics Acquired 4 | . . . . . 2 . 2 . . Parts Built 2 | . . . . . . 2 . . . Authchips . | . . . . . . . . . . Time 87 | . . . . . . 87 . . . Total Part Build Rating 4 | . . . . . . 4 . . . Parts Repaired . | . . . . . . . . . . Time . | . . . . . . . . . . Parts Recycled . | . . . . . . . . . . Recycled Matter . | . . . . . . . . . . Retrieved Matter . | . . . . . . . . . . Retrieved Components . | . . . . . . . . . . Parts Scanalyzed 1 | . . . . . . . 1 . . Part Schematics Acquired 1 | . . . . . . . 1 . . Parts Damaged 1 | . . . . . . . 1 . . Bothacking | -11 -10 -10 -10 -9 -8 -7 -6 -6 -6 ------------ Run | Scr Mat Min Exi Min Mat Fac Fac Gar Fac Used RIF Installer . | . . . . . . . . . . Robots Hacked 7 | . . . . . . 6 1 . . Non-combat 6 | . . . . . . 6 . . . Combat 1 | . . . . . . . 1 . . Robot Hacks Applied 13 | . . . . . . 13 . . . parse_system 5 | . . . . . . 5 . . . no_distress 3 | . . . . . . 3 . . . find_fabricator 2 | . . . . . . 2 . . . find_dsf 2 | . . . . . . 2 . . . find_recycling 1 | . . . . . . 1 . . . Relay Couplers Released 1 | . . . . . . 1 . . . Machine Destruction 1 | . . . . . . 1 . . . Fabnet Peak Effective % 9 | . . . . . . . 9 9 9 Autooverrided 1 | . . . . . . . 1 . . Robots Rewired . | . . . . . . . . . . Allies Hacked . | . . . . . . . . . . Hacks Repelled . | . . . . . . . . . . Allies | -11 -10 -10 -10 -9 -8 -7 -6 -6 -6 -------- Run | Scr Mat Min Exi Min Mat Fac Fac Gar Fac Total Allies 7 | . . 3 . . . 3 1 . . Largest Group 3 | . . 3 3 3 3 3 1 . . Highest-Rated Group 40 | . . 40 40 40 40 30 29 . . Highest-Rated Ally 29 | . . 16 16 16 16 10 29 . . Total Orders . | . . . . . . . . . . Ally Attacks 45 | . . 14 . . 18 10 3 . . Total Damage 542 | . . 127 . . 166 192 57 . . Kills 8 | . . 2 . . 2 4 . . . Allies Corrupted . | . . . . . . . . . . Allies Melted . | . . . . . . . . . . Intel | -11 -10 -10 -10 -9 -8 -7 -6 -6 -6 ------- Run | Scr Mat Min Exi Min Mat Fac Fac Gar Fac Robot Analysis Total 1 | . . . . . 1 . . . . Derelict Logs Recovered 1 | . . 1 . . . . . . . Drone Launches . | . . . . . . . . . . Drone Recoveries . | . . . . . . . . . . Exploration | -11 -10 -10 -10 -9 -8 -7 -6 -6 -6 ------------- Run | Scr Mat Min Exi Min Mat Fac Fac Gar Fac Turns Passed 1744 | 3 64 121 283 184 390 375 116 161 47 Spaces Moved 1876 | 3 53 89 230 117 473 473 167 181 90 Core 471 | . . . . . . 48 152 181 90 Treads . | . . . . . . . . . . Legs 492 | 3 53 89 230 117 . . . . . Wheels . | . . . . . . . . . . Hover . | . . . . . . . . . . Flight 913 | . . . . . 473 425 15 . . Fastest Speed 32 | 120 120 120 120 120 50 50 32 50 50 Average Speed 69 | 120 120 120 120 120 50 52 51 52 50 Slowest Speed 200 | 120 120 120 120 120 50 200 100 150 50 Overloaded Moves . | . . . . . . . . . . Propulsion Burnouts . | . . . . . . . . . . Robots Hopped 14 | . . . . . 10 3 1 . . Cave-ins Triggered . | . . . . . . . . . . Exploration Rate (%) 24 | 1 21 27 60 29 43 17 6 39 2 Regions Visited 9 Branch Regions 3 Pre-discovered Areas 1 | . . 1 . . . . . . . Known Exits Taken 3 | . 1 . . . 1 . 1 . . Unknown Exits Taken 5 | 1 . 1 1 1 . 1 . . . Scrap Searched 2 | . . 2 . . . . . . . Spaces Dug 8 | . . . . . . 7 1 . . Terrain Destroyed 33 | . . . . . . 7 26 . . Melee 8 | . . . . . . 7 1 . . Projectile . | . . . . . . . . . . AOE 25 | . . . . . . . 25 . . Terrain Rammed . | . . . . . . . . . . Walls Destroyed . | . . . . . . . . . . Machines Disabled . | . . . . . . . . . . Actions | -11 -10 -10 -10 -9 -8 -7 -6 -6 -6 --------- Run | Scr Mat Min Exi Min Mat Fac Fac Gar Fac Total 2214 | 2 53 99 240 159 568 573 192 237 91 Wait 219 | . . 8 3 37 68 73 9 21 . Move 1841 | 2 52 88 229 116 454 466 164 180 90 Hop 12 | . . . . . 8 3 1 . . Pick Up 6 | . 1 . 3 . . . . 2 . Fast Attach 23 | . . 1 . 2 6 4 5 4 1 Attach 4 | . . . . . 1 . 2 1 . Detach 6 | . . . . 1 . 1 3 1 . Swap . | . . . . . . . . . . Drop 19 | . . . 5 2 4 3 4 1 . Fire 36 | . . 2 . 1 27 . 2 4 . Melee 22 | . . . . . . 21 1 . . Ram 11 | . . . . . . 2 1 8 . Kick . | . . . . . . . . . . Crush . | . . . . . . . . . . Escape Stasis 15 | . . . . . . . . 15 . Rewire . | . . . . . . . . . . Trap . | . . . . . . . . . . Miscellaneous . | . . . . . . . . . . Route ------- -11/Scrapyard -10/Materials -10/Mines (discovered 2 exits: [*Mat] / *Exi) -10/Exiles -9/Mines -8/Materials (discovered 3 exits: *Fac x3) -7/Factory (discovered 3 exits: *Fac / [*Sto] / [*Low]) -6/Factory (discovered 5 exits: Fac x4 / Gar) -6/Garrison -6/Factory History --------- Turn | Location | Event 1 | -11/Scrapyard | Discovered new exit (range 2) 4 | -11/Scrapyard | Entered Materials 37 | -10/Materials | Identified exit to Mines 68 | -10/Materials | Entered Mines 71 | -10/Mines | Assisted by bots powering up and referring to "LRC-V3" 110 | -10/Mines | Learned location of Mines (-9) 148 | -10/Mines | Discovered new exit (range 15) 174 | -10/Mines | Deemed a non-threat by the Exiles lab entrance 174 | -10/Mines | Discovered new exit (range 6) 189 | -10/Mines | Entered Exiles 189 | -10/Exiles | Accompanied by 3 allies 223 | -10/Exiles | Met 8R-AWN 243 | -10/Exiles | Met EX-HEX 280 | -10/Exiles | Met EX-BIN 293 | -10/Exiles | Aligned with FarCom system 294 | -10/Exiles | Given EX-Vault access code 313 | -10/Exiles | Build established: Mutant 327 | -10/Exiles | Opened EX-Vault 342 | -10/Exiles | Found Flying Fortress v7 368 | -10/Exiles | Warned to stay clear of 0b10 Research branches 402 | -10/Exiles | Met EX-DEC 457 | -10/Exiles | Discovered new exit (range 12) 472 | -10/Exiles | Left Exiles lab with Flying Fortress v7 472 | -10/Exiles | Entered Mines 472 | -9/Mines | Accompanied by 3 allies 544 | -9/Mines | Found a damaged Exp. Sensor Array with a note attached 548 | -9/Mines | Found Prototype Device 548 | -9/Mines | Identified Exp. Sensor Array 644 | -9/Mines | Discovered new exit (range 8) 656 | -9/Mines | Entered Materials 656 | -8/Materials | Accompanied by 3 allies 656 | -8/Materials | Evolved 4 slots: Propulsion x2, Utility x2 958 | -8/Materials | Identified exit to Factory 1046 | -8/Materials | Entered Factory 1046 | -7/Factory | Evolved 2 slots: Utility x2 1104 | -7/Factory | Fabricated Datajack (x1) 1166 | -7/Factory | Discovered new exit (range 2) 1249 | -7/Factory | Fabricated Hacking Suite (x1) 1270 | -7/Factory | Build established: Hacker-Mutant 1282 | -7/Factory | Discovered new exit (range 15) 1298 | -7/Factory | Fabricated B-36 Bruiser? 1380 | -7/Factory | Discovered new exit (range 15) 1421 | -7/Factory | Entered another Factory area 1421 | -6/Factory | Evolved 2 slots: Utility x2 1461 | -6/Factory | Identified exit to Factory 1533 | -6/Factory | Identified exit to Garrison 1537 | -6/Factory | Entered Garrison 1563 | -6/Garrison | Lost 4 parts (2n1u1w) 1609 | -6/Garrison | Core integrity fell below 50% 1634 | -6/Garrison | Spotted B-75 Beast 1634 | -6/Garrison | Spotted B-75 Beast 1653 | -6/Garrison | Core integrity fell below 20% 1665 | -6/Garrison | Spotted B-75 Beast 1672 | -6/Garrison | Triggered checkpoint 1693 | -6/Garrison | Discovered new exit (range 10) 1698 | -6/Garrison | Entered Factory 1745 | -6/Factory | Destroyed by S-27 Virus with Autogun Last Messages --------------- 01614_ Hpw. Shock Rifle destroyed. 01616_ Dropped Hpw. Shock Rifle. 01617_ Slammed into G-50 Soldier. 01618_ Acquired 75 matter. 01620_ Slammed into G-50 Soldier. 01652_ B-75 Beast springs to life. 01652_ Imp. Core Shielding destroyed. 01667_ Knocked back. 01668_ Acquired 6 matter. 01672_ Beams of light sweep through the air. An alarm sounds. 01693_ EXIT=FOUND LOCATION=UNKNOWN GOAL=ESCAPE 01698_ Receiving FarCom transmissions... 01704_ Connecting with DSF Access... 01704_ Current location identified: Factory 01724_ Acquired Adv. Terrain Scanner. 01741_ Triggered Ambush Trap. 01741_ G-50 Soldier emerges from a hatch in the floor. 01741_ S-27 Virus emerges from a hatch in the floor. Map ----- +----------------------------------------------------+ | ?????????????????????????????????????????????????? | | ?????????????????????????????????????????????????? | | ?????????????????????????????????????????????????? | | ?????????????????????????????????????????????????? | | ?????????????????????????????????????????????????? | | ?????????????????????????????????????????????????? | | ?????????????????????????????????????????????????? | | ?????????????????????????????????????????????????? | | ????????????????????? ???????????????????????????? | | ????????????????????????????????"????????????????? | | ???????????????????????????####???##?????????????? | | ??????????????????????????? ?? #?????????????# | | ???????????????????????????? "" ##+############ | | ???????????????????????????? """ # # | | ??????????????????? ????????? R" # # | | ???????????????????? ???????? """ # + | | ????????????? ????"""????????? # # | | ????????????? """ ???????? # # | | ????????????? """ ????????? ?# [ # | | ??????????????# """ ???????? ?############### | | ??????????????# #########+################# | | ??????????????# g | | ??????????????# u | | ??????????????+ s | | ??????????????# s | | ??????????????# @ | | ???????????????####+####+##############+######### | | ????????????????????????????????????? ??????## | | ???????????????????????????? ?????? ?????? | | ??????????????????????????????????# #????? | | ??????????????????????????????????# #????? | | ??????????????????????????????????# """"""" ##???? | | ??????????????????????????????????# """"""" #????? | | ??????????????????????????????????# """"""" #????? | | ??????????????????????????????????# """"""" #????? | | ??????????????????????????????????????????????#??? | | | | | | | | | | | | | | | | | | | | | | | | | | | | | +----------------------------------------------------+ Best States ------------- Heat Dissipation 37 Energy Generation 14 Energy Capacity 250 Matter Stores 300 Matter Capacity 300 Sight Range 16 Robot Scan Range 20 Terrain Scan Range 20 Terrain Scan Density 10 Core Shielding 30 Evasion (%) 63 Offensive Hacking 50 Item Schematics ----------------- Hacking Suite | -8/Materials | Hacked Datajack | -8/Materials | Hacked Exp. Sensor Array | -6/Factory | Scanalyzed Adv. Reaction Control System | -6/Factory | Hacked Robot Schematics ------------------ None Fabricated ------------ Datajack | x1 | -7/Factory Hacking Suite | x1 | -7/Factory B-36 Bruiser | x3 | -7/Factory | Preloaded Alien Tech Used ----------------- None Achievements -------------- None Challenges ------------ None Game ------ Seed BombLegGun Manual? 0 Play Time 00:22:51 Cumulative 123.1 hours Start 2022.11.14 @ 12:33:40 End 2022.11.14 @ 12:57:55 Sessions 1 Manual Loads 0 Difficulty Rogue Special Mode None Game No. 133 Rogue 133 Adventurer 0 Explorer 0 Win Type - Total 0 Types 0/0/0/0/0/0/0/0/0 Lore% 53 Gallery% 68 Achievement% 53 Wizard Run 0 Options --------- ASCII 0 Keyboard 0 Movement Mouse Keybinds 0 Fullscreen 1 Font 18/SmallcapsGlow Map View 76x50 Tactical HUD 1 Map Filters NONE Filters NONE Steam 1 RUN: 2f132669-a604-4cb7-89b0-25f574662a1a